[Event "Titled Tuesday Blitz March 08 Early 2022"]
[White "Sailer, Mike"]
[Black "Petrova, Irina"]
[WhiteFideId "2012901"]
[BlackFideId "14124122"]
[WhiteElo "2109"]
[BlackElo "1993"]
[Result "0-1"]
[Round "03"]
[TimeControl "180+1"]
[Date "2022.03.09"]
[WhiteClock "0:00:27"]
[BlackClock "0:01:22"]

1. d4 {[%clk 0:03:00]}  d6 {[%clk 0:02:59]} 2. Nf3 {[%clk 0:03:00]}  g6 {[%clk 0:02:57]} 3. Bf4 {[%clk 0:03:00]}  Bg7 {[%clk 0:02:56]} 4. e3 {[%clk 0:03:00]}  Nd7 {[%clk 0:02:55]} 5. Be2 {[%clk 0:02:57]}  e5 {[%clk 0:02:55]} 6. Bg3 {[%clk 0:02:57]}  Ne7 {[%clk 0:02:54]} 7. c4 {[%clk 0:02:58]}  Nf5 {[%clk 0:02:53]} 8. Nc3 {[%clk 0:02:58]}  O-O {[%clk 0:02:52]} 9. b4 {[%clk 0:02:37]}  Nxg3 {[%clk 0:02:50]} 10. hxg3 {[%clk 0:02:37]}  exd4 {[%clk 0:02:51]} 11. exd4 {[%clk 0:02:37]}  c5 {[%clk 0:02:50]} 12. bxc5 {[%clk 0:02:21]}  dxc5 {[%clk 0:02:46]} 13. Nd5 {[%clk 0:02:21]}  cxd4 {[%clk 0:02:41]} 14. Nxd4 {[%clk 0:02:21]}  Nb6 {[%clk 0:02:36]} 15. Nb3 {[%clk 0:01:16]}  Nxd5 {[%clk 0:02:34]} 16. cxd5 {[%clk 0:01:15]}  Bxa1 {[%clk 0:02:33]} 17. Nxa1 {[%clk 0:01:14]}  Qa5+ {[%clk 0:02:26]} 18. Kf1 {[%clk 0:01:09]}  Bd7 {[%clk 0:02:23]} 19. Qc1 {[%clk 0:00:41]}  Qxa2 {[%clk 0:02:17]} 20. Nc2 {[%clk 0:00:39]}  f5 {[%clk 0:01:54]} 21. Ne3 {[%clk 0:00:29]}  Rac8 {[%clk 0:01:45]} 22. Qd1 {[%clk 0:00:28]}  Qb2 {[%clk 0:01:24]} 23. Kg1 {[%clk 0:00:27]}  Rc1 {[%clk 0:01:22]} 0-1


[Site "https://www.chess.com"]

[Event "Titled Tuesday Blitz March 08 Early 2022"]
[White "Samadov, Read"]
[Black "Eynullayev, Atilla"]
[WhiteFideId "13417444"]
[BlackFideId "13413570"]
[WhiteElo "2084"]
[BlackElo "1979"]
[Result "0-1"]
[Round "03"]
[TimeControl "180+1"]
[Date "2022.03.09"]
[WhiteClock "0:00:01"]
[BlackClock "0:00:06"]

1. d4 {[%clk 0:03:00]}  Nf6 {[%clk 0:03:00]} 2. Nf3 {[%clk 0:03:01]}  e6 {[%clk 0:03:00]} 3. c4 {[%clk 0:03:00]}  d5 {[%clk 0:03:00]} 4. Nc3 {[%clk 0:03:00]}  dxc4 {[%clk 0:02:58]} 5. e3 {[%clk 0:02:59]}  a6 {[%clk 0:02:58]} 6. a4 {[%clk 0:02:58]}  c5 {[%clk 0:02:56]} 7. Bxc4 {[%clk 0:02:59]}  Nc6 {[%clk 0:02:56]} 8. O-O {[%clk 0:02:58]}  Be7 {[%clk 0:02:55]} 9. Qe2 {[%clk 0:02:57]}  cxd4 {[%clk 0:02:54]} 10. Rd1 {[%clk 0:02:58]}  e5 {[%clk 0:02:53]} 11. exd4 {[%clk 0:02:54]}  exd4 {[%clk 0:02:53]} 12. Nxd4 {[%clk 0:02:52]}  Nxd4 {[%clk 0:02:52]} 13. Qe3 {[%clk 0:02:51]}  Qb6 {[%clk 0:02:20]} 14. Rxd4 {[%clk 0:02:41]}  O-O {[%clk 0:02:17]} 15. a5 {[%clk 0:02:34]}  Qc5 {[%clk 0:01:47]} 16. Na4 {[%clk 0:02:11]}  Qc7 {[%clk 0:01:33]} 17. Nb6 {[%clk 0:02:02]}  Rb8 {[%clk 0:01:24]} 18. Qf4 {[%clk 0:01:58]}  Bd8 {[%clk 0:00:30]} 19. b3 {[%clk 0:00:38]}  Be6 {[%clk 0:00:23]} 20. Ba3 {[%clk 0:00:25]}  Qxf4 {[%clk 0:00:14]} 21. Rxf4 {[%clk 0:00:25]}  Bxb6 {[%clk 0:00:11]} 22. Bxe6 {[%clk 0:00:10]}  fxe6 {[%clk 0:00:08]} 23. Bxf8 {[%clk 0:00:10]}  Bc7 {[%clk 0:00:08]} 24. Rc4 {[%clk 0:00:08]}  Be5 {[%clk 0:00:08]} 25. Re1 {[%clk 0:00:07]}  Kxf8 {[%clk 0:00:06]} 26. Rxe5 {[%clk 0:00:07]}  Rd8 {[%clk 0:00:07]} 27. f3 {[%clk 0:00:07]}  Rd1+ {[%clk 0:00:07]} 28. Kf2 {[%clk 0:00:05]}  Rd2+ {[%clk 0:00:08]} 29. Re2 {[%clk 0:00:05]}  Rd6 {[%clk 0:00:07]} 30. Rb4 {[%clk 0:00:04]}  Nd5 {[%clk 0:00:04]} 31. Rxb7 {[%clk 0:00:03]}  Nf4 {[%clk 0:00:05]} 32. Re4 {[%clk 0:00:03]}  g5 {[%clk 0:00:05]} 33. Ke3 {[%clk 0:00:04]}  Rd3+ {[%clk 0:00:05]} 34. Kf2 {[%clk 0:00:01]}  Rd2+ {[%clk 0:00:06]} 0-1


[Site "https://www.chess.com"]

[Event "Titled Tuesday Blitz March 08 Early 2022"]
[White "Samunenkov, Ihor"]
[Black "Hess, Max"]
[WhiteFideId "14187086"]
[BlackFideId "24656666"]
[WhiteElo "2708"]
[BlackElo "2481"]
[Result "1-0"]
[Round "03"]
[TimeControl "180+1"]
[Date "2022.03.09"]
[WhiteClock "0:00:12"]
[BlackClock "0:00:08"]

1. d4 {[%clk 0:03:00]}  d5 {[%clk 0:02:59]} 2. c4 {[%clk 0:02:57]}  e6 {[%clk 0:03:00]} 3. Nc3 {[%clk 0:02:57]}  Nf6 {[%clk 0:03:00]} 4. cxd5 {[%clk 0:02:57]}  exd5 {[%clk 0:03:01]} 5. Bg5 {[%clk 0:02:56]}  Be7 {[%clk 0:03:00]} 6. e3 {[%clk 0:02:54]}  h6 {[%clk 0:03:01]} 7. Bh4 {[%clk 0:02:51]}  O-O {[%clk 0:03:01]} 8. Bd3 {[%clk 0:02:50]}  Re8 {[%clk 0:03:00]} 9. Nge2 {[%clk 0:02:43]}  c6 {[%clk 0:02:59]} 10. Qc2 {[%clk 0:02:38]}  Nbd7 {[%clk 0:02:59]} 11. O-O {[%clk 0:02:35]}  Nh5 {[%clk 0:02:58]} 12. Bxe7 {[%clk 0:02:34]}  Qxe7 {[%clk 0:02:59]} 13. Rae1 {[%clk 0:02:34]}  Nf8 {[%clk 0:02:40]} 14. Nc1 {[%clk 0:02:31]}  Nf6 {[%clk 0:02:37]} 15. Nb3 {[%clk 0:02:29]}  a5 {[%clk 0:02:32]} 16. Na4 {[%clk 0:02:20]}  Ne4 {[%clk 0:02:17]} 17. Nb6 {[%clk 0:01:52]}  Ra7 {[%clk 0:02:15]} 18. f3 {[%clk 0:01:41]}  Nd6 {[%clk 0:02:04]} 19. Qc5 {[%clk 0:01:41]}  Bf5 {[%clk 0:01:36]} 20. Nxd5 {[%clk 0:01:16]}  cxd5 {[%clk 0:01:27]} 21. Bxf5 {[%clk 0:01:17]}  Nxf5 {[%clk 0:01:04]} 22. Qxa7 {[%clk 0:01:15]}  Nxe3 {[%clk 0:01:04]} 23. Rf2 {[%clk 0:01:04]}  Ng6 {[%clk 0:00:59]} 24. Qxa5 {[%clk 0:00:51]}  Nf4 {[%clk 0:00:52]} 25. Qd2 {[%clk 0:00:46]}  Qg5 {[%clk 0:00:51]} 26. Kh1 {[%clk 0:00:46]}  Nfxg2 {[%clk 0:00:24]} 27. Rxg2 {[%clk 0:00:43]}  Qf4 {[%clk 0:00:23]} 28. Qf2 {[%clk 0:00:36]}  Re6 {[%clk 0:00:19]} 29. Rgg1 {[%clk 0:00:22]}  Nf5 {[%clk 0:00:13]} 30. Rxe6 {[%clk 0:00:21]}  fxe6 {[%clk 0:00:14]} 31. Rg4 {[%clk 0:00:18]}  Qc7 {[%clk 0:00:12]} 32. Qd2 {[%clk 0:00:16]}  Qc4 {[%clk 0:00:11]} 33. Rg1 {[%clk 0:00:16]}  Kf7 {[%clk 0:00:11]} 34. Rc1 {[%clk 0:00:16]}  Qb5 {[%clk 0:00:10]} 35. Kg2 {[%clk 0:00:13]}  Kf6 {[%clk 0:00:08]} 36. Kf2 {[%clk 0:00:13]}  g5 {[%clk 0:00:09]} 37. Qe2 {[%clk 0:00:13]}  Qb6 {[%clk 0:00:07]} 38. Qe5+ {[%clk 0:00:13]}  Kf7 {[%clk 0:00:08]} 39. Qc7+ {[%clk 0:00:11]}  Qxc7 {[%clk 0:00:08]} 40. Rxc7+ {[%clk 0:00:12]}  Kf6 {[%clk 0:00:08]} 41. Rxb7 {[%clk 0:00:12]} 1-0


[Site "https://www.chess.com"]

[Event "Titled Tuesday Blitz March 08 Early 2022"]
[White "Saravana, Krishnan P."]
[Black "Tsatsalashvili, Keti"]
[WhiteFideId "5018382"]
[BlackFideId "13603434"]
[WhiteElo "2210"]
[BlackElo "2246"]
[Result "1-0"]
[Round "03"]
[TimeControl "180+1"]
[Date "2022.03.09"]
[WhiteClock "0:01:51"]
[BlackClock "0:01:10"]

1. e4 {[%clk 0:02:45]}  c5 {[%clk 0:02:58]} 2. Nf3 {[%clk 0:02:44]}  d6 {[%clk 0:02:58]} 3. Bb5+ {[%clk 0:02:42]}  Nd7 {[%clk 0:02:54]} 4. O-O {[%clk 0:02:41]}  Nf6 {[%clk 0:02:53]} 5. Re1 {[%clk 0:02:40]}  e6 {[%clk 0:02:52]} 6. c3 {[%clk 0:02:39]}  Be7 {[%clk 0:02:51]} 7. d4 {[%clk 0:02:38]}  d5 {[%clk 0:02:46]} 8. e5 {[%clk 0:02:37]}  Ne4 {[%clk 0:02:45]} 9. Nbd2 {[%clk 0:02:37]}  Nxd2 {[%clk 0:02:43]} 10. Qxd2 {[%clk 0:02:37]}  cxd4 {[%clk 0:02:23]} 11. Qxd4 {[%clk 0:02:26]}  Bc5 {[%clk 0:02:18]} 12. Qxc5 {[%clk 0:02:25]}  a6 {[%clk 0:02:02]} 13. Bxd7+ {[%clk 0:02:21]}  Bxd7 {[%clk 0:02:01]} 14. Bg5 {[%clk 0:02:21]}  f6 {[%clk 0:01:54]} 15. exf6 {[%clk 0:02:21]}  gxf6 {[%clk 0:01:55]} 16. Bh4 {[%clk 0:02:07]}  Kf7 {[%clk 0:01:51]} 17. Ne5+ {[%clk 0:02:07]}  Kg7 {[%clk 0:01:46]} 18. Re3 {[%clk 0:02:05]}  Rf8 {[%clk 0:01:38]} 19. Rg3+ {[%clk 0:02:02]}  Kh8 {[%clk 0:01:32]} 20. Qe3 {[%clk 0:02:02]}  Be8 {[%clk 0:01:11]} 21. Qh6 {[%clk 0:01:54]}  Qe7 {[%clk 0:01:10]} 22. Rg6 {[%clk 0:01:51]} 1-0


[Site "https://www.chess.com"]

[Event "Titled Tuesday Blitz March 08 Early 2022"]
[White "Sargissyan, Sargis"]
[Black "Bashirli, Nail"]
[WhiteFideId "13303210"]
[BlackFideId "13406809"]
[WhiteElo "2174"]
[BlackElo "2333"]
[Result "0-1"]
[Round "03"]
[TimeControl "180+1"]
[Date "2022.03.09"]
[WhiteClock "0:00:01"]
[BlackClock "0:00:14"]

1. e4 {[%clk 0:03:00]}  c5 {[%clk 0:02:58]} 2. Nf3 {[%clk 0:03:01]}  d6 {[%clk 0:02:58]} 3. d4 {[%clk 0:03:01]}  cxd4 {[%clk 0:02:59]} 4. Nxd4 {[%clk 0:03:02]}  Nf6 {[%clk 0:02:59]} 5. Nc3 {[%clk 0:03:02]}  Nc6 {[%clk 0:03:00]} 6. Bg5 {[%clk 0:03:02]}  e6 {[%clk 0:03:00]} 7. Qd2 {[%clk 0:03:02]}  a6 {[%clk 0:03:01]} 8. O-O-O {[%clk 0:03:03]}  Bd7 {[%clk 0:03:01]} 9. Nxc6 {[%clk 0:02:56]}  Bxc6 {[%clk 0:03:00]} 10. Qe1 {[%clk 0:02:56]}  Qa5 {[%clk 0:02:54]} 11. f4 {[%clk 0:02:43]}  Be7 {[%clk 0:02:51]} 12. Kb1 {[%clk 0:02:39]}  h6 {[%clk 0:02:27]} 13. Bh4 {[%clk 0:02:38]}  g5 {[%clk 0:02:12]} 14. fxg5 {[%clk 0:02:20]}  hxg5 {[%clk 0:02:13]} 15. Bg3 {[%clk 0:02:21]}  Qc5 {[%clk 0:02:10]} 16. Bf2 {[%clk 0:01:58]}  Qa5 {[%clk 0:02:05]} 17. Bg3 {[%clk 0:01:58]}  O-O-O {[%clk 0:01:49]} 18. Qe3 {[%clk 0:01:11]}  Qc5 {[%clk 0:01:42]} 19. Qe1 {[%clk 0:00:45]}  Ng4 {[%clk 0:01:38]} 20. Be2 {[%clk 0:00:40]}  Ne5 {[%clk 0:01:20]} 21. Bf2 {[%clk 0:00:34]}  Qa5 {[%clk 0:01:20]} 22. h3 {[%clk 0:00:19]}  Kb8 {[%clk 0:01:15]} 23. Qd2 {[%clk 0:00:18]}  Rd7 {[%clk 0:01:04]} 24. Rhf1 {[%clk 0:00:18]}  Rc8 {[%clk 0:01:02]} 25. Qd4 {[%clk 0:00:17]}  b5 {[%clk 0:01:02]} 26. b4 {[%clk 0:00:13]}  Qc7 {[%clk 0:00:59]} 27. Kb2 {[%clk 0:00:12]}  Qb7 {[%clk 0:00:58]} 28. a3 {[%clk 0:00:10]}  Rdc7 {[%clk 0:00:58]} 29. Be1 {[%clk 0:00:10]}  Bxe4 {[%clk 0:00:54]} 30. Qxe4 {[%clk 0:00:03]}  Qxe4 {[%clk 0:00:53]} 31. Nxe4 {[%clk 0:00:03]}  Rxc2+ {[%clk 0:00:54]} 32. Kb1 {[%clk 0:00:03]}  Rxe2 {[%clk 0:00:54]} 33. Nxd6 {[%clk 0:00:03]}  Rcc2 {[%clk 0:00:48]} 34. Bg3 {[%clk 0:00:01]}  Rb2+ {[%clk 0:00:24]} 35. Ka1 {[%clk 0:00:01]}  Ra2+ {[%clk 0:00:22]} 36. Kb1 {[%clk 0:00:02]}  Reb2+ {[%clk 0:00:17]} 37. Kc1 {[%clk 0:00:02]}  Re2 {[%clk 0:00:14]} 38. Nxf7 {[%clk 0:00:01]}  Ra1# {[%clk 0:00:14]} 0-1


[Site "https://www.chess.com"]

[Event "Titled Tuesday Blitz March 08 Early 2022"]
[White "Shahaliyev, Ismayil"]
[Black "Svane, Rasmus"]
[WhiteFideId "13406388"]
[BlackFideId "4657101"]
[WhiteElo "2105"]
[BlackElo "2645"]
[Result "1-0"]
[Round "03"]
[TimeControl "180+1"]
[Date "2022.03.08"]
[WhiteClock "0:00:12"]
[BlackClock "0:00:10"]

1. d4 {[%clk 0:03:00]}  d5 {[%clk 0:02:59]} 2. Nf3 {[%clk 0:03:01]}  e6 {[%clk 0:02:59]} 3. c4 {[%clk 0:03:01]}  a6 {[%clk 0:02:59]} 4. cxd5 {[%clk 0:03:01]}  exd5 {[%clk 0:03:00]} 5. Nc3 {[%clk 0:03:01]}  Nf6 {[%clk 0:03:00]} 6. Bf4 {[%clk 0:03:01]}  Bd6 {[%clk 0:03:00]} 7. Bg3 {[%clk 0:03:01]}  c6 {[%clk 0:02:52]} 8. e3 {[%clk 0:03:01]}  Bg4 {[%clk 0:02:46]} 9. Qc2 {[%clk 0:03:00]}  O-O {[%clk 0:02:44]} 10. Ne5 {[%clk 0:02:59]}  Be6 {[%clk 0:02:32]} 11. Bd3 {[%clk 0:02:59]}  c5 {[%clk 0:02:28]} 12. O-O {[%clk 0:02:49]}  Qe7 {[%clk 0:02:24]} 13. f4 {[%clk 0:02:45]}  cxd4 {[%clk 0:02:18]} 14. exd4 {[%clk 0:02:45]}  Nc6 {[%clk 0:02:18]} 15. Nxc6 {[%clk 0:02:34]}  bxc6 {[%clk 0:02:19]} 16. Bh4 {[%clk 0:02:29]}  h6 {[%clk 0:02:08]} 17. Rae1 {[%clk 0:02:24]}  Qd8 {[%clk 0:02:08]} 18. Na4 {[%clk 0:02:13]}  Bd7 {[%clk 0:01:21]} 19. Nc5 {[%clk 0:02:06]}  Bxc5 {[%clk 0:01:21]} 20. dxc5 {[%clk 0:02:06]}  Re8 {[%clk 0:01:15]} 21. Qc3 {[%clk 0:01:52]}  a5 {[%clk 0:01:11]} 22. Re5 {[%clk 0:01:40]}  Be6 {[%clk 0:01:02]} 23. Qd4 {[%clk 0:01:39]}  Rb8 {[%clk 0:00:58]} 24. a3 {[%clk 0:01:38]}  Rb7 {[%clk 0:00:32]} 25. Rfe1 {[%clk 0:01:27]}  Rbe7 {[%clk 0:00:30]} 26. Bxf6 {[%clk 0:00:20]}  gxf6 {[%clk 0:00:31]} 27. R5e3 {[%clk 0:00:20]}  Bg4 {[%clk 0:00:25]} 28. f5 {[%clk 0:00:19]}  Rxe3 {[%clk 0:00:24]} 29. Rxe3 {[%clk 0:00:20]}  Rxe3 {[%clk 0:00:24]} 30. Qxe3 {[%clk 0:00:21]}  Qb8 {[%clk 0:00:19]} 31. h3 {[%clk 0:00:17]}  Bh5 {[%clk 0:00:20]} 32. Qxh6 {[%clk 0:00:17]}  Qg3 {[%clk 0:00:17]} 33. Qxh5 {[%clk 0:00:11]}  Qxd3 {[%clk 0:00:17]} 34. Qg4+ {[%clk 0:00:12]}  Kf8 {[%clk 0:00:18]} 35. b4 {[%clk 0:00:13]}  Qxa3 {[%clk 0:00:17]} 36. bxa5 {[%clk 0:00:12]}  Qxc5+ {[%clk 0:00:17]} 37. Kh2 {[%clk 0:00:11]}  Qxa5 {[%clk 0:00:18]} 38. h4 {[%clk 0:00:11]}  Qc7+ {[%clk 0:00:18]} 39. Kh3 {[%clk 0:00:11]}  Qe5 {[%clk 0:00:17]} 40. h5 {[%clk 0:00:11]}  Qe3+ {[%clk 0:00:18]} 41. Kh2 {[%clk 0:00:11]}  Qe4 {[%clk 0:00:15]} 42. Qxe4 {[%clk 0:00:07]}  dxe4 {[%clk 0:00:16]} 43. Kg3 {[%clk 0:00:08]}  Kg7 {[%clk 0:00:08]} 44. Kf4 {[%clk 0:00:08]}  Kh6 {[%clk 0:00:08]} 45. g4 {[%clk 0:00:09]}  Kg7 {[%clk 0:00:03]} 46. Kxe4 {[%clk 0:00:09]}  Kf8 {[%clk 0:00:04]} 47. Kd4 {[%clk 0:00:10]}  Ke7 {[%clk 0:00:05]} 48. Kc5 {[%clk 0:00:10]}  Kf8 {[%clk 0:00:02]} 49. Kxc6 {[%clk 0:00:11]}  Kg7 {[%clk 0:00:03]} 50. Kd7 {[%clk 0:00:11]}  Kf8 {[%clk 0:00:04]} 51. Kd8 {[%clk 0:00:11]}  Kg7 {[%clk 0:00:05]} 52. Ke7 {[%clk 0:00:12]}  Kh7 {[%clk 0:00:04]} 53. Kxf6 {[%clk 0:00:11]}  Kh6 {[%clk 0:00:05]} 54. Kxf7 {[%clk 0:00:11]}  Kg5 {[%clk 0:00:06]} 55. Ke6 {[%clk 0:00:11]}  Kh6 {[%clk 0:00:07]} 56. f6 {[%clk 0:00:11]}  Kg5 {[%clk 0:00:08]} 57. f7 {[%clk 0:00:12]}  Kh6 {[%clk 0:00:09]} 58. f8=Q+ {[%clk 0:00:12]}  Kg5 {[%clk 0:00:10]} 59. Qg7+ {[%clk 0:00:12]} 1-0


[Site "https://www.chess.com"]

[Event "Titled Tuesday Blitz March 08 Early 2022"]
[White "Shkapenko, Pavel"]
[Black "Guliev, Logman"]
[WhiteFideId "4151933"]
[BlackFideId "13400061"]
[WhiteElo "2704"]
[BlackElo "2478"]
[Result "1-0"]
[Round "03"]
[TimeControl "180+1"]
[Date "2022.03.09"]
[WhiteClock "0:00:47"]
[BlackClock "0:00:19"]

1. e4 {[%clk 0:03:00]}  c5 {[%clk 0:02:59]} 2. c3 {[%clk 0:02:59]}  d5 {[%clk 0:02:59]} 3. exd5 {[%clk 0:02:59]}  Qxd5 {[%clk 0:02:59]} 4. d4 {[%clk 0:03:00]}  Nf6 {[%clk 0:03:00]} 5. Nf3 {[%clk 0:03:00]}  e6 {[%clk 0:03:00]} 6. Be2 {[%clk 0:03:00]}  Nc6 {[%clk 0:02:59]} 7. O-O {[%clk 0:03:01]}  cxd4 {[%clk 0:02:59]} 8. cxd4 {[%clk 0:03:01]}  Be7 {[%clk 0:03:00]} 9. Nc3 {[%clk 0:03:02]}  Qd6 {[%clk 0:03:00]} 10. Be3 {[%clk 0:03:00]}  O-O {[%clk 0:03:00]} 11. a3 {[%clk 0:03:01]}  a6 {[%clk 0:03:00]} 12. b4 {[%clk 0:02:37]}  Ng4 {[%clk 0:02:53]} 13. Qb3 {[%clk 0:02:30]}  Nxe3 {[%clk 0:02:46]} 14. fxe3 {[%clk 0:02:29]}  Bd7 {[%clk 0:02:39]} 15. Rac1 {[%clk 0:02:27]}  Rac8 {[%clk 0:02:36]} 16. Ne4 {[%clk 0:02:26]}  Qb8 {[%clk 0:02:36]} 17. Nc5 {[%clk 0:02:25]}  Be8 {[%clk 0:02:34]} 18. Bd3 {[%clk 0:02:04]}  h6 {[%clk 0:02:29]} 19. Bb1 {[%clk 0:02:03]}  Bd6 {[%clk 0:02:19]} 20. Qd3 {[%clk 0:02:00]}  g6 {[%clk 0:02:19]} 21. Qe4 {[%clk 0:01:57]}  Ne7 {[%clk 0:02:17]} 22. Qxb7 {[%clk 0:01:53]}  Nd5 {[%clk 0:01:37]} 23. Qxb8 {[%clk 0:01:49]}  Bxb8 {[%clk 0:01:37]} 24. Kf2 {[%clk 0:01:43]}  Bb5 {[%clk 0:01:29]} 25. Rfd1 {[%clk 0:01:30]}  Rfd8 {[%clk 0:01:08]} 26. Bd3 {[%clk 0:01:30]}  Bxd3 {[%clk 0:01:03]} 27. Nxd3 {[%clk 0:01:24]}  Nf6 {[%clk 0:01:04]} 28. Rxc8 {[%clk 0:01:18]}  Ne4+ {[%clk 0:00:55]} 29. Ke1 {[%clk 0:01:13]}  Rxc8 {[%clk 0:00:55]} 30. Rc1 {[%clk 0:01:14]}  Rxc1+ {[%clk 0:00:43]} 31. Nxc1 {[%clk 0:01:14]}  g5 {[%clk 0:00:44]} 32. Nd3 {[%clk 0:00:56]}  f6 {[%clk 0:00:30]} 33. Nc5 {[%clk 0:00:51]}  Nxc5 {[%clk 0:00:30]} 34. dxc5 {[%clk 0:00:52]}  g4 {[%clk 0:00:30]} 35. Nd4 {[%clk 0:00:51]}  Bxh2 {[%clk 0:00:31]} 36. Nxe6 {[%clk 0:00:49]}  Kf7 {[%clk 0:00:31]} 37. Nd4 {[%clk 0:00:48]}  h5 {[%clk 0:00:31]} 38. Ke2 {[%clk 0:00:48]}  h4 {[%clk 0:00:31]} 39. a4 {[%clk 0:00:48]}  Be5 {[%clk 0:00:21]} 40. b5 {[%clk 0:00:48]}  axb5 {[%clk 0:00:20]} 41. axb5 {[%clk 0:00:49]}  h3 {[%clk 0:00:21]} 42. gxh3 {[%clk 0:00:49]}  gxh3 {[%clk 0:00:22]} 43. Kf3 {[%clk 0:00:49]}  Ke7 {[%clk 0:00:19]} 44. Nc6+ {[%clk 0:00:47]} 1-0


[Site "https://www.chess.com"]

[Event "Titled Tuesday Blitz March 08 Early 2022"]
[White "Siva Mahadevan"]
[Black "Proudian, Armen"]
[WhiteFideId "25043153"]
[BlackFideId "2130734"]
[WhiteElo "2816"]
[BlackElo "2599"]
[Result "0-1"]
[Round "03"]
[TimeControl "180+1"]
[Date "2022.03.09"]
[WhiteClock "0:00:09"]
[BlackClock "0:00:32"]

1. e4 {[%clk 0:03:00]}  e5 {[%clk 0:03:00]} 2. Nf3 {[%clk 0:03:00]}  Nc6 {[%clk 0:03:00]} 3. Bb5 {[%clk 0:02:59]}  a6 {[%clk 0:03:00]} 4. Ba4 {[%clk 0:02:59]}  Nge7 {[%clk 0:03:01]} 5. c3 {[%clk 0:02:58]}  g6 {[%clk 0:03:01]} 6. d4 {[%clk 0:02:57]}  exd4 {[%clk 0:03:02]} 7. cxd4 {[%clk 0:02:58]}  b5 {[%clk 0:03:02]} 8. Bb3 {[%clk 0:02:59]}  Bg7 {[%clk 0:03:02]} 9. d5 {[%clk 0:02:59]}  Na5 {[%clk 0:03:02]} 10. Bd2 {[%clk 0:02:59]}  c5 {[%clk 0:03:00]} 11. d6 {[%clk 0:02:58]}  Nec6 {[%clk 0:02:57]} 12. Bd5 {[%clk 0:02:43]}  Bxb2 {[%clk 0:02:42]} 13. Bc3 {[%clk 0:02:21]}  Bxc3+ {[%clk 0:02:41]} 14. Nxc3 {[%clk 0:02:22]}  O-O {[%clk 0:02:29]} 15. O-O {[%clk 0:02:22]}  Bb7 {[%clk 0:02:25]} 16. e5 {[%clk 0:02:19]}  Nb4 {[%clk 0:02:10]} 17. Bxb7 {[%clk 0:02:18]}  Nxb7 {[%clk 0:02:10]} 18. Ne4 {[%clk 0:02:18]}  f5 {[%clk 0:01:53]} 19. exf6 {[%clk 0:02:16]}  Rxf6 {[%clk 0:01:53]} 20. a3 {[%clk 0:02:02]}  Nc6 {[%clk 0:01:53]} 21. Qd5+ {[%clk 0:01:35]}  Kg7 {[%clk 0:01:53]} 22. Nxf6 {[%clk 0:01:33]}  Qxf6 {[%clk 0:01:54]} 23. Ng5 {[%clk 0:01:25]}  Re8 {[%clk 0:01:31]} 24. Ne4 {[%clk 0:01:04]}  Qe6 {[%clk 0:01:18]} 25. Qxe6 {[%clk 0:01:00]}  Rxe6 {[%clk 0:01:19]} 26. f3 {[%clk 0:01:00]}  c4 {[%clk 0:01:09]} 27. Rfd1 {[%clk 0:01:00]}  Ne5 {[%clk 0:01:07]} 28. Rab1 {[%clk 0:00:35]}  Nd3 {[%clk 0:00:55]} 29. a4 {[%clk 0:00:21]}  Nxd6 {[%clk 0:00:42]} 30. Nxd6 {[%clk 0:00:20]}  Rxd6 {[%clk 0:00:42]} 31. axb5 {[%clk 0:00:18]}  axb5 {[%clk 0:00:43]} 32. Rxb5 {[%clk 0:00:12]}  c3 {[%clk 0:00:43]} 33. Rxd3 {[%clk 0:00:06]}  Rxd3 {[%clk 0:00:41]} 34. Rc5 {[%clk 0:00:07]}  d5 {[%clk 0:00:40]} 35. Kf2 {[%clk 0:00:07]}  d4 {[%clk 0:00:40]} 36. Kg3 {[%clk 0:00:08]}  Rd2 {[%clk 0:00:40]} 37. Kf4 {[%clk 0:00:08]}  Rxg2 {[%clk 0:00:33]} 38. Ke4 {[%clk 0:00:08]}  Rd2 {[%clk 0:00:33]} 39. h4 {[%clk 0:00:08]}  c2 {[%clk 0:00:32]} 40. h5 {[%clk 0:00:09]}  gxh5 {[%clk 0:00:32]} 0-1


[Site "https://www.chess.com"]

[Event "Titled Tuesday Blitz March 08 Early 2022"]
[White "Skliarov, Viktor"]
[Black "Fernandez Siles, Luis"]
[WhiteFideId "14106736"]
[BlackFideId "2209420"]
[WhiteElo "2229"]
[BlackElo "2212"]
[Result "1-0"]
[Round "03"]
[TimeControl "180+1"]
[Date "2022.03.09"]
[WhiteClock "0:01:03"]
[BlackClock "0:01:12"]

1. e4 {[%clk 0:03:00]}  c5 {[%clk 0:02:59]} 2. Nf3 {[%clk 0:03:00]}  Nc6 {[%clk 0:02:59]} 3. Bb5 {[%clk 0:03:00]}  g6 {[%clk 0:02:58]} 4. O-O {[%clk 0:03:00]}  Bg7 {[%clk 0:02:58]} 5. Re1 {[%clk 0:03:01]}  Nf6 {[%clk 0:02:58]} 6. e5 {[%clk 0:03:01]}  Nd5 {[%clk 0:02:57]} 7. Nc3 {[%clk 0:03:02]}  Nc7 {[%clk 0:02:58]} 8. Bxc6 {[%clk 0:03:02]}  dxc6 {[%clk 0:02:58]} 9. Ne4 {[%clk 0:03:03]}  Ne6 {[%clk 0:02:58]} 10. d3 {[%clk 0:03:03]}  O-O {[%clk 0:02:57]} 11. Be3 {[%clk 0:03:03]}  b6 {[%clk 0:02:58]} 12. Qd2 {[%clk 0:03:03]}  a5 {[%clk 0:02:56]} 13. Bh6 {[%clk 0:03:03]}  Ra7 {[%clk 0:02:56]} 14. h4 {[%clk 0:02:56]}  f5 {[%clk 0:02:54]} 15. exf6 {[%clk 0:02:51]}  exf6 {[%clk 0:02:53]} 16. h5 {[%clk 0:02:51]}  Bxh6 {[%clk 0:02:29]} 17. Qxh6 {[%clk 0:02:48]}  g5 {[%clk 0:02:30]} 18. Ng3 {[%clk 0:02:17]}  Ng7 {[%clk 0:02:23]} 19. Re3 {[%clk 0:02:10]}  Re7 {[%clk 0:02:05]} 20. Rae1 {[%clk 0:02:09]}  Rxe3 {[%clk 0:02:05]} 21. Rxe3 {[%clk 0:02:09]}  Bg4 {[%clk 0:01:55]} 22. Nh2 {[%clk 0:01:41]}  Bf5 {[%clk 0:01:38]} 23. Nhf1 {[%clk 0:01:35]}  Bc8 {[%clk 0:01:25]} 24. Nd2 {[%clk 0:01:31]}  Qd6 {[%clk 0:01:23]} 25. Nde4 {[%clk 0:01:09]}  Qd8 {[%clk 0:01:12]} 26. Rf3 {[%clk 0:01:03]} 1-0


[Site "https://www.chess.com"]